[Event "46th Roda Open 2019"]
[Site "La Roda"]
[Date "2019.04.21"]
[Round "9.3"]
[White "Popov, Ivan"]
[Black "Solodovnichenko, Yuri"]
[Result "1/2-1/2"]
[ECO "C47"]
[WhiteElo "2585"]
[BlackElo "2554"]
[Annotator "ChessBase"]
[PlyCount "104"]
[EventDate "2019.04.17"]
[EventType "swiss"]
[EventCountry "ESP"]
[SourceTitle "playchess.com"]
[Source "ChessBase"]
[SourceQuality "1"]
[TimeControl "5400+30"]

1. e4 {[%emt 0:00:00]} e5 {[%emt 0:00:00]} 2. Nf3 {[%emt 0:00:00]} Nf6 {[%emt 0:00:00]} 3. Nc3 {[%emt 0:00:12]} Nc6 {[%emt 0:00:00]} 4. Be2 {[%emt 0:00:26]} d5 {[%emt 0:00:02]} 5. exd5 {[%emt 0:00:11]} Nxd5 {[%emt 0:00:08]} 6. O-O {[%emt 0:00:11]} Nxc3 {[%emt 0:00:03]} 7. bxc3 {[%emt 0:00:06]} e4 {[%emt 0:03:58]} 8. Ne1 {[%emt 0:00:09]} Bd6 {[%emt 0:00:08]} 9. f3 {[%emt 0:00:18]} Bf5 {[%emt 0:02:12]} 10. fxe4 {[%emt 0:02:48]} Bxe4 {[%emt 0:01:23]} 11. Nf3 {[%emt 0:00:17]} O-O {[%emt 0:00:43]} 12. d4 {[%emt 0:00:07]} h6 {[%emt 0:02:59]} 13. Bd3 {[%emt 0:00:59]} Qe7 {[%emt 0:09:16]} 14. Bxe4 {[%emt 0:06:19]} Qxe4 {[%emt 0:00:16]} 15. Qd3 {[%emt 0:00:09]} Rae8 {[%emt 0:06:09]} 16. Bd2 {[%emt 0:01:30]} Qxd3 {[%emt 0:25:28]} 17. cxd3 {[%emt 0:00:21]} f5 {[%emt 0:00:34]} 18. Rae1 {[%emt 0:15:26]} Kh7 {[%emt 0:05:14]} 19. g3 {[%emt 0:13:10]} g5 {[%emt 0:09:54]} 20. Kg2 {[%emt 0:11:01]} b6 {[%emt 0:11:25]} 21. d5 {[%emt 0:22:43]} Ne5 {[%emt 0:01:52]} 22. Nxe5 {[%emt 0:00:08]} Rxe5 {[%emt 0:01:51]} 23. Rxe5 {[%emt 0:00:09]} Bxe5 {[%emt 0:00:09]} 24. Re1 {[%emt 0:00:13]} Bd6 {[%emt 0:02:43]} 25. Re6 {[%emt 0:00:59]} Rg8 {[%emt 0:05:08]} 26. c4 {[%emt 0:10:25]} Rg6 {[%emt 0:00:19]} 27. Re1 {[%emt 0:04:20]} Rg7 {[%emt 0:01:01]} 28. Re6 {[%emt 0:04:27]} Re7 {[%emt 0:01:23]} 29. d4 {[%emt 0:02:11]} Kg7 {[%emt 0:03:31]} 30. h4 {[%emt 0:00:21]} Rxe6 {[%emt 0:02:03]} 31. dxe6 {[%emt 0:00:02]} gxh4 {[%emt 0:02:10]} 32. gxh4 {[%emt 0:00:07]} h5 {[%emt 0:00:23]} 33. d5 {[%emt 0:00:24]} c6 {[%emt 0:00:40]} 34. Kf3 {[%emt 0:02:25]} cxd5 {[%emt 0:00:04]} 35. cxd5 {[%emt 0:00:03]} b5 {[%emt 0:00:25]} 36. a3 {[%emt 0:03:20]} Bxa3 {[%emt 0:01:18]} 37. Kf4 {[%emt 0:00:19]} Bd6+ {[%emt 0:00:43]} 38. Kxf5 {[%emt 0:00:06]} b4 {[%emt 0:00:04]} 39. Ke4 {[%emt 0:02:07]} a5 {[%emt 0:01:02]} 40. Kd3 {[%emt 0:00:14]} a4 {[%emt 0:00:34]} 41. Kc2 {[%emt 0:00:36]} Kf6 {[%emt 0:01:16]} 42. Bg5+ {[%emt 0:00:49]} Kg6 {[%emt 0:00:01]} 43. Kb2 {[%emt 0:00:17]} Be5+ {[%emt 0:01:02]} 44. Ka2 {[%emt 0:00:15]} Bd6 {[%emt 0:00:28]} 45. Kb2 {[%emt 0:00:18]} Be5+ {[%emt 0:00:32]} 46. Ka2 {[%emt 0:00:02]} b3+ {[%emt 0:00:15]} 47. Ka3 {[%emt 0:00:01]} Bd6+ {[%emt 0:00:03]} 48. Kb2 {[%emt 0:00:07]} Be5+ {[%emt 0:00:31]} 49. Ka3 {[%emt 0:00:02]} Bd6+ {[%emt 0:00:17]} 50. Kb2 {[%emt 0:00:01]} Kg7 {[%emt 0:02:11]} 51. Be3 {[%emt 0:01:00]} Kg6 {[%emt 0:00:35]} 52. Bg5 {[%emt 0:00:23]} Be5+ {[%emt 0:00:12]} 1/2-1/2

[Event "46th Roda Open 2019"]
[Site "La Roda"]
[Date "2019.04.21"]
[Round "9.4"]
[White "Lopez Mulet, Inigo"]
[Black "Forcen Esteban, Daniel"]
[Result "1/2-1/2"]
[ECO "A40"]
[WhiteElo "2368"]
[BlackElo "2567"]
[Annotator "ChessBase"]
[PlyCount "107"]
[EventDate "2019.04.17"]
[EventType "swiss"]
[EventCountry "ESP"]
[SourceTitle "playchess.com"]
[Source "ChessBase"]
[SourceQuality "1"]
[TimeControl "5400+30"]

1. d4 {[%emt 0:00:00]} e6 {[%emt 0:01:22]} 2. Nf3 {[%emt 0:00:17]} Nf6 {[%emt 0:00:17]} 3. g3 {[%emt 0:00:56]} b5 {[%emt 0:00:57]} 4. Bg2 {[%emt 0:17:25]} Bb7 {[%emt 0:00:28]} 5. Qd3 {[%emt 0:02:32]} a6 {[%emt 0:00:54]} 6. Nbd2 {[%emt 0:00:20]} c5 {[%emt 0:01:08]} 7. c3 {[%emt 0:00:53]} cxd4 {[%emt 0:07:37]} 8. cxd4 {[%emt 0:00:13]} Nc6 {[%emt 0:00:05]} 9. a3 {[%emt 0:03:27]} d5 {[%emt 0:05:27]} 10. O-O {[%emt 0:04:09]} Be7 {[%emt 0:01:41]} 11. Nb3 {[%emt 0:00:50]} Nd7 {[%emt 0:16:47]} 12. Bd2 {[%emt 0:08:51]} O-O {[%emt 0:02:15]} 13. Rfc1 {[%emt 0:02:35]} Qb6 {[%emt 0:08:49]} 14. Bg5 {[%emt 0:04:40]} Rfc8 {[%emt 0:06:32]} 15. Rxc6 {[%emt 0:02:12]} Qxc6 {[%emt 0:02:04]} 16. Bxe7 {[%emt 0:00:07]} Qc2 {[%emt 0:00:05]} 17. Qxc2 {[%emt 0:02:30]} Rxc2 {[%emt 0:00:05]} 18. Rb1 {[%emt 0:00:08]} a5 {[%emt 0:03:41]} 19. Bc5 {[%emt 0:11:46]} a4 {[%emt 0:01:03]} 20. Na1 {[%emt 0:00:20]} Rxe2 {[%emt 0:00:09]} 21. Bf1 {[%emt 0:00:16]} Re4 {[%emt 0:00:04]} 22. Bd3 {[%emt 0:00:05]} Nxc5 {[%emt 0:00:04]} 23. dxc5 {[%emt 0:00:29]} Rc8 {[%emt 0:00:20]} 24. Bxe4 {[%emt 0:00:23]} dxe4 {[%emt 0:00:05]} 25. Nd4 {[%emt 0:01:05]} Rxc5 {[%emt 0:00:03]} 26. Ne2 {[%emt 0:00:06]} f5 {[%emt 0:03:21]} 27. Rd1 {[%emt 0:04:01]} Bd5 {[%emt 0:00:35]} 28. Nc3 {[%emt 0:00:13]} Kf7 {[%emt 0:02:56]} 29. Nc2 {[%emt 0:00:08]} g5 {[%emt 0:00:58]} 30. Nb4 {[%emt 0:02:45]} Bc4 {[%emt 0:00:42]} 31. Rd6 {[%emt 0:04:20]} Rc8 {[%emt 0:03:21]} 32. Nc6 {[%emt 0:04:58]} Kf6 {[%emt 0:00:33]} 33. Nd4 {[%emt 0:00:23]} Ke5 {[%emt 0:02:07]} 34. Rc6 {[%emt 0:00:14]} Rxc6 {[%emt 0:00:47]} 35. Nxc6+ {[%emt 0:00:06]} Kd6 {[%emt 0:00:02]} 36. Nb4 {[%emt 0:05:06]} g4 {[%emt 0:02:55]} 37. Nc2 {[%emt 0:02:39]} Kc5 {[%emt 0:02:22]} 38. Ne3 {[%emt 0:01:58]} Bd3 {[%emt 0:01:17]} 39. Na2 {[%emt 0:00:09]} Kd4 {[%emt 0:06:50]} 40. Nc1 {[%emt 0:00:07]} h6 {[%emt 0:05:04]} 41. Kg2 {[%emt 0:01:42]} h5 {[%emt 0:00:24]} 42. Nd1 {[%emt 0:08:13]} Bc4 {[%emt 0:01:43]} 43. Nc3 {[%emt 0:03:04]} e3 {[%emt 0:06:30]} 44. f4 {[%emt 0:00:37]} Bd3 {[%emt 0:01:52]} 45. N3e2+ {[%emt 0:03:30]} Bxe2 {[%emt 0:00:30]} 46. Nxe2+ {[%emt 0:00:05]} Kd3 {[%emt 0:00:04]} 47. Nc3 {[%emt 0:01:01]} Kc2 {[%emt 0:00:07]} 48. Kf1 {[%emt 0:00:59]} Kd2 {[%emt 0:00:05]} 49. Ne2 {[%emt 0:00:55]} Kd1 {[%emt 0:00:18]} 50. Nc3+ {[%emt 0:00:26]} Kd2 {[%emt 0:00:05]} 51. Ne2 {[%emt 0:00:38]} Kc2 {[%emt 0:01:16]} 52. Nd4+ {[%emt 0:00:23]} Kd2 {[%emt 0:00:33]} 53. Ne2 {[%emt 0:00:37]} Kc2 {[%emt 0:00:05]} 54. Nd4+ 1/2-1/2

[Event "46th Roda Open 2019"]
[Site "La Roda"]
[Date "2019.04.21"]
[Round "9.5"]
[White "Sivuk, Vitaly"]
[Black "Burmakin, Vladimir"]
[Result "1/2-1/2"]
[ECO "B01"]
[WhiteElo "2523"]
[BlackElo "2495"]
[Annotator "ChessBase"]
[PlyCount "74"]
[EventDate "2019.04.17"]
[EventType "swiss"]
[EventCountry "ESP"]
[SourceTitle "playchess.com"]
[Source "ChessBase"]
[SourceQuality "1"]
[TimeControl "5400+30"]

1. e4 {[%emt 0:00:00]} d5 {[%emt 0:00:10]} 2. exd5 {[%emt 0:00:00]} Qxd5 {[%emt 0:00:03]} 3. Nc3 {[%emt 0:00:04]} Qd6 {[%emt 0:00:04]} 4. d4 {[%emt 0:00:13]} Nf6 {[%emt 0:00:04]} 5. Nf3 {[%emt 0:00:13]} c6 {[%emt 0:00:04]} 6. Ne5 {[%emt 0:00:25]} Be6 {[%emt 0:00:05]} 7. Bf4 {[%emt 0:01:52]} Qd8 {[%emt 0:00:05]} 8. Qd2 {[%emt 0:11:31]} Nbd7 {[%emt 0:00:10]} 9. Be2 {[%emt 0:00:19]} g6 {[%emt 0:00:42]} 10. h4 {[%emt 0:07:15]} Bg7 {[%emt 0:00:36]} 11. h5 {[%emt 0:01:39]} Nd5 {[%emt 0:10:15]} 12. Nxd5 {[%emt 0:05:11]} Bxd5 {[%emt 0:05:26]} 13. f3 {[%emt 0:00:40]} Be6 {[%emt 0:06:25]} 14. Qe3 {[%emt 0:06:34]} Qa5+ {[%emt 0:11:05]} 15. c3 {[%emt 0:06:54]} Nxe5 {[%emt 0:06:32]} 16. dxe5 {[%emt 0:00:32]} g5 {[%emt 0:00:42]} 17. Bxg5 {[%emt 0:13:26]} Bxe5 {[%emt 0:00:05]} 18. Rd1 {[%emt 0:08:45]} Bg3+ {[%emt 0:03:30]} 19. Kf1 {[%emt 0:01:29]} Bc7 {[%emt 0:04:32]} 20. Bf4 {[%emt 0:05:08]} Bb6 {[%emt 0:00:17]} 21. Qe5 {[%emt 0:00:15]} Qxe5 {[%emt 0:00:43]} 22. Bxe5 {[%emt 0:00:04]} O-O {[%emt 0:00:48]} 23. a3 {[%emt 0:04:27]} Rfd8 {[%emt 0:00:23]} 24. Rh4 {[%emt 0:02:11]} f6 {[%emt 0:02:41]} 25. Bd4 {[%emt 0:01:23]} Bb3 {[%emt 0:10:37]} 26. Bxb6 {[%emt 0:01:48]} Rxd1+ {[%emt 0:02:04]} 27. Bxd1 {[%emt 0:00:06]} Bxd1 {[%emt 0:00:11]} 28. Bc5 {[%emt 0:01:18]} e5 {[%emt 0:03:21]} 29. Rg4+ {[%emt 0:01:54]} Kf7 {[%emt 0:00:00]} 30. h6 {[%emt 0:00:14]} Rg8 {[%emt 0:00:06]} 31. Rxg8 {[%emt 0:00:07]} Kxg8 {[%emt 0:00:07]} 32. Bxa7 {[%emt 0:00:04]} Kf7 {[%emt 0:00:26]} 33. Bb6 {[%emt 0:00:52]} f5 {[%emt 0:02:03]} 34. Bc7 {[%emt 0:00:35]} Ke6 {[%emt 0:00:12]} 35. Kf2 {[%emt 0:00:17]} f4 {[%emt 0:00:28]} 36. g3 {[%emt 0:00:25]} fxg3+ {[%emt 0:00:03]} 37. Kxg3 {[%emt 0:00:04]} Bb3 1/2-1/2

[Event "46th Roda Open 2019"]
[Site "La Roda"]
[Date "2019.04.21"]
[Round "9.6"]
[White "Ibarra Jerez, Jose Carlos"]
[Black "Renteria, Jorge"]
[Result "1-0"]
[ECO "C41"]
[WhiteElo "2542"]
[BlackElo "2263"]
[Annotator "ChessBase"]
[PlyCount "97"]
[EventDate "2019.04.17"]
[EventType "swiss"]
[EventCountry "ESP"]
[SourceTitle "playchess.com"]
[Source "ChessBase"]
[SourceQuality "1"]
[TimeControl "5400+30"]

1. e4 {[%emt 0:00:00]} d6 {[%emt 0:00:15]} 2. d4 {[%emt 0:00:00]} Nf6 {[%emt 0:00:08]} 3. Nc3 {[%emt 0:00:07]} e5 {[%emt 0:00:04]} 4. Nf3 {[%emt 0:00:17]} Nbd7 {[%emt 0:00:06]} 5. Bc4 {[%emt 0:00:22]} Be7 {[%emt 0:00:13]} 6. a4 {[%emt 0:00:32]} O-O {[%emt 0:00:08]} 7. O-O {[%emt 0:00:07]} a5 {[%emt 0:00:02]} 8. Re1 {[%emt 0:00:40]} b6 {[%emt 0:00:28]} 9. b3 {[%emt 0:05:27]} Bb7 {[%emt 0:00:16]} 10. Bb2 {[%emt 0:01:30]} Re8 {[%emt 0:03:33]} 11. Qd2 {[%emt 0:10:49]} exd4 {[%emt 0:00:11]} 12. Qxd4 {[%emt 0:01:27]} Ne5 {[%emt 0:00:42]} 13. Be2 {[%emt 0:03:09]} Bf8 {[%emt 0:10:03]} 14. Rad1 {[%emt 0:05:07]} Nc6 {[%emt 0:21:37]} 15. Qd2 {[%emt 0:08:05]} Ne5 {[%emt 0:13:23]} 16. Qc1 {[%emt 0:04:29]} Nxf3+ {[%emt 0:02:56]} 17. Bxf3 {[%emt 0:02:26]} Nd7 {[%emt 0:00:07]} 18. Nd5 {[%emt 0:02:22]} Bxd5 {[%emt 0:03:22]} 19. Rxd5 {[%emt 0:03:08]} Ne5 {[%emt 0:03:23]} 20. Be2 {[%emt 0:01:24]} Qh4 {[%emt 0:04:28]} 21. f4 {[%emt 0:15:09]} Ng4 {[%emt 0:02:32]} 22. Bxg4 {[%emt 0:00:40]} Qxg4 {[%emt 0:00:08]} 23. Rg5 {[%emt 0:02:42]} Qd7 {[%emt 0:00:27]} 24. Qd2 {[%emt 0:00:52]} Kh8 {[%emt 0:05:18]} 25. c4 {[%emt 0:04:18]} f6 {[%emt 0:02:24]} 26. Rd5 {[%emt 0:00:23]} Qf7 {[%emt 0:01:14]} 27. Rd3 {[%emt 0:01:57]} Kg8 {[%emt 0:06:15]} 28. Rde3 {[%emt 0:00:50]} Red8 {[%emt 0:10:15]} 29. R1e2 {[%emt 0:00:31]} Re8 {[%emt 0:02:42]} 30. Qd3 {[%emt 0:02:25]} Re6 {[%emt 0:01:28]} 31. Qd5 {[%emt 0:00:50]} Rae8 {[%emt 0:00:45]} 32. Kf2 {[%emt 0:01:31]} R6e7 {[%emt 0:01:08]} 33. h3 {[%emt 0:03:57]} Kh8 {[%emt 0:00:17]} 34. Kf3 {[%emt 0:02:53]} Qg6 {[%emt 0:00:22]} 35. g4 {[%emt 0:00:42]} h6 {[%emt 0:00:53]} 36. h4 {[%emt 0:01:13]} Qf7 {[%emt 0:00:53]} 37. Rg2 {[%emt 0:00:47]} Qe6 {[%emt 0:01:26]} 38. Qxe6 {[%emt 0:02:52]} Rxe6 {[%emt 0:00:07]} 39. f5 {[%emt 0:00:17]} R6e7 {[%emt 0:00:15]} 40. g5 {[%emt 0:00:11]} fxg5 {[%emt 0:01:16]} 41. hxg5 {[%emt 0:00:02]} hxg5 {[%emt 0:00:22]} 42. Rxg5 {[%emt 0:00:07]} Rf7 {[%emt 0:01:04]} 43. Kf4 {[%emt 0:00:51]} Re6 {[%emt 0:01:28]} 44. Rh3+ {[%emt 0:01:16]} Kg8 {[%emt 0:00:06]} 45. Rgh5 {[%emt 0:02:00]} Rh6 {[%emt 0:00:10]} 46. Rxh6 {[%emt 0:00:22]} gxh6 {[%emt 0:00:07]} 47. Rg3+ {[%emt 0:00:23]} Kh7 {[%emt 0:00:18]} 48. f6 {[%emt 0:00:12]} h5 {[%emt 0:00:48]} 49. Kf5 {[%emt 0:00:24]} 1-0

[Event "46th Roda Open 2019"]
[Site "La Roda"]
[Date "2019.04.21"]
[Round "9.7"]
[White "Espinosa Aranda, Angel"]
[Black "Martinez Fernandez, Adrian"]
[Result "1/2-1/2"]
[ECO "B92"]
[WhiteElo "2482"]
[BlackElo "2318"]
[Annotator "ChessBase"]
[PlyCount "39"]
[EventDate "2019.04.17"]
[EventType "swiss"]
[EventCountry "ESP"]
[SourceTitle "playchess.com"]
[Source "ChessBase"]
[SourceQuality "1"]
[TimeControl "5400+30"]

1. e4 {[%emt 0:00:00]} c5 {[%emt 0:00:00]} 2. Nf3 {[%emt 0:00:06]} d6 {[%emt 0:00:00]} 3. d4 {[%emt 0:00:35]} cxd4 {[%emt 0:00:04]} 4. Nxd4 {[%emt 0:00:07]} Nf6 {[%emt 0:00:06]} 5. Nc3 {[%emt 0:00:04]} a6 {[%emt 0:00:08]} 6. Be2 {[%emt 0:00:34]} e5 {[%emt 0:00:08]} 7. Nb3 {[%emt 0:00:16]} Be7 {[%emt 0:00:23]} 8. O-O {[%emt 0:00:21]} O-O {[%emt 0:00:29]} 9. Re1 {[%emt 0:00:43]} b6 {[%emt 0:05:15]} 10. a4 {[%emt 0:09:04]} Bb7 {[%emt 0:00:56]} 11. Bf3 {[%emt 0:00:07]} h6 {[%emt 0:10:25]} 12. Nd2 {[%emt 0:16:50]} Qc7 {[%emt 0:06:35]} 13. Nf1 {[%emt 0:00:28]} Nbd7 {[%emt 0:01:00]} 14. Ne3 {[%emt 0:00:44]} Rfd8 {[%emt 0:00:35]} 15. g4 {[%emt 0:12:27]} Nc5 {[%emt 0:17:10]} 16. Nf5 {[%emt 0:02:30]} Ne6 {[%emt 0:09:05]} 17. Nd5 {[%emt 0:00:17]} Nxd5 {[%emt 0:06:40]} 18. exd5 {[%emt 0:00:05]} Ng5 {[%emt 0:00:02]} 19. Bg2 {[%emt 0:02:43]} Bf8 {[%emt 0:01:26]} 20. Ra3 {[%emt 0:13:37]} 1/2-1/2

[Event "46th Roda Open 2019"]
[Site "La Roda"]
[Date "2019.04.21"]
[Round "9.8"]
[White "Merario Alarcon, Andres"]
[Black "Mogranzini, Roberto"]
[Result "0-1"]
[ECO "E83"]
[WhiteElo "2399"]
[BlackElo "2449"]
[Annotator "NA"]
[PlyCount "62"]
[EventDate "2019.04.17"]
[EventType "swiss"]
[EventCountry "ESP"]
[SourceTitle "playchess.com"]
[Source "ChessBase"]
[SourceQuality "1"]
[TimeControl "5400+30"]

1. d4 {[%emt 0:00:00]} d6 {[%emt 0:00:07]} 2. e4 {[%emt 0:00:00]} Nf6 {[%emt 0:00:07]} 3. f3 {[%emt 0:00:06]} g6 {[%emt 0:00:14]} 4. c4 {[%emt 0:00:07]} Bg7 {[%emt 0:00:05]} 5. Nc3 {[%emt 0:00:05]} O-O {[%emt 0:00:05]} 6. Be3 {[%emt 0:00:20]} Nc6 {[%emt 0:00:10]} 7. Nge2 {[%emt 0:00:14]} a6 {[%emt 0:00:05]} 8. Qd2 {[%emt 0:00:35]} Na5 {[%emt 0:00:22]} 9. Nf4 {[%emt 0:00:09]} b5 {[%emt 0:01:11]} 10. h4 {[%emt 0:00:22]} Nxc4 {[%emt 0:11:09]} 11. Bxc4 {[%emt 0:00:29]} bxc4 {[%emt 0:00:03]} 12. h5 {[%emt 0:00:27]} c6 {[%emt 0:04:57]} 13. hxg6 {[%emt 0:03:14]} fxg6 {[%emt 0:01:58]} 14. Qe2 {[%emt 0:02:05]} d5 {[%emt 0:04:26]} 15. e5 {[%emt 0:00:56]} Nh5 {[%emt 0:01:21]} 16. Nxh5 {[%emt 0:02:56]} gxh5 {[%emt 0:00:31]} 17. Rxh5 {[%emt 0:03:01]} Bf5 {[%emt 0:00:13]} 18. O-O-O {[%emt 0:05:09]} Bg6 {[%emt 0:01:01]} 19. Rh3 {[%emt 0:00:26]} e6 {[%emt 0:04:10]} 20. Rdh1 {[%emt 0:14:20]} Rb8 {[%emt 0:02:26]} 21. g4 {[%emt 0:05:55]} Rf7 {[%emt 0:03:00]} 22. R1h2 {[%emt 0:17:55]} Qa5 {[%emt 0:03:15]} 23. Qe1 {[%emt 0:01:21]} Bf8 {[%emt 0:02:42]} 24. f4 {[%emt 0:11:32]} Bb4 {[%emt 0:02:59]} 25. Bd2 {[%emt 0:07:10]} Bxc3 {[%emt 0:01:17]} 26. Bxc3 {[%emt 0:00:32]} Qxa2 {[%emt 0:00:33]} 27. f5 {[%emt 0:01:43]} exf5 {[%emt 0:04:24]} 28. gxf5 {[%emt 0:02:05]} Rxf5 {[%emt 0:01:32]} 29. b4 {[%emt 0:04:21]} Qa3+ {[%emt 0:02:59]} 30. Kd2 {[%emt 0:01:09]} Rbf8 {[%emt 0:05:21]} 31. Qg3 {[%emt 0:03:30]} Rf3 {[%emt 0:01:37]} 0-1